[Event "*** SCC Grand Prix: Titled Tuesday Blitz"]
[Site "Chess.com"]
[Date "2020.07.07"]
[Round "8"]
[White "alfiefischer77"]
[Black "malakismayil"]
[Result "0-1"]
[WhiteElo "2285"]
[BlackElo "2156"]
[TimeControl "180+1"]
[EndTime "11:37:23 PDT"]
[Termination "malakismayil won on time"]

1. e4 {[%clk 0:03:00.9]} 1... e5 {[%clk 0:02:59.2]} 2. Nf3 {[%clk 0:03:01]} 2...
Nc6 {[%clk 0:02:59]} 3. Bb5 {[%clk 0:03:01.4]} 3... a6 {[%clk 0:02:57.1]} 4. Ba4
{[%clk 0:03:01.6]} 4... Nf6 {[%clk 0:02:57]} 5. Qe2 {[%clk 0:03:01.7]} 5... b5
{[%clk 0:02:43.8]} 6. Bb3 {[%clk 0:03:01.8]} 6... Be7 {[%clk 0:02:40.8]} 7. c3
{[%clk 0:03:01.3]} 7... d6 {[%clk 0:02:31.7]} 8. O-O {[%clk 0:03:01.3]} 8... O-O
{[%clk 0:02:27.5]} 9. Rd1 {[%clk 0:03:01.5]} 9... Re8 {[%clk 0:02:07.3]} 10. d4
{[%clk 0:02:58.3]} 10... Bf8 {[%clk 0:02:07.6]} 11. Bg5 {[%clk 0:02:52.7]} 11...
h6 {[%clk 0:02:05.3]} 12. Bxf6 {[%clk 0:01:56.7]} 12... Qxf6 {[%clk 0:02:02.6]}
13. a4 {[%clk 0:01:51.3]} 13... Rb8 {[%clk 0:01:52.6]} 14. axb5 {[%clk
0:01:50.3]} 14... axb5 {[%clk 0:01:53.5]} 15. d5 {[%clk 0:01:45.3]} 15... Ne7
{[%clk 0:01:51.9]} 16. Ra7 {[%clk 0:01:43.9]} 16... Bb7 {[%clk 0:01:37.7]} 17.
Nbd2 {[%clk 0:01:29.5]} 17... Nc8 {[%clk 0:01:20.6]} 18. Ra5 {[%clk 0:01:26.3]}
18... c6 {[%clk 0:01:16.8]} 19. Rda1 {[%clk 0:01:20.5]} 19... g5 {[%clk
0:01:12.3]} 20. Nf1 {[%clk 0:01:11.7]} 20... Be7 {[%clk 0:01:01.6]} 21. Ne3
{[%clk 0:01:10]} 21... Bd8 {[%clk 0:01:01.1]} 22. R5a2 {[%clk 0:01:03]} 22...
Ne7 {[%clk 0:00:58.4]} 23. dxc6 {[%clk 0:00:42.7]} 23... Bxc6 {[%clk 0:00:59.3]}
24. Nd5 {[%clk 0:00:40.5]} 24... Bxd5 {[%clk 0:00:56.7]} 25. Bxd5 {[%clk
0:00:36.6]} 25... Nxd5 {[%clk 0:00:51]} 26. exd5 {[%clk 0:00:37.5]} 26... Bb6
{[%clk 0:00:50.9]} 27. Nd2 {[%clk 0:00:30.4]} 27... Qg6 {[%clk 0:00:46.9]} 28.
Kh1 {[%clk 0:00:26]} 28... f5 {[%clk 0:00:35.9]} 29. f3 {[%clk 0:00:20.2]} 29...
Qh5 {[%clk 0:00:14.7]} 30. Ra6 {[%clk 0:00:16.5]} 30... Re7 {[%clk 0:00:11.4]}
31. Nf1 {[%clk 0:00:15.5]} 31... f4 {[%clk 0:00:09.4]} 32. Qxb5 {[%clk
0:00:11.4]} 32... Kg7 {[%clk 0:00:07.5]} 33. Rxb6 {[%clk 0:00:10.8]} 33... Rd8
{[%clk 0:00:06.4]} 34. Rb7 {[%clk 0:00:10.4]} 34... Re8 {[%clk 0:00:03.7]} 35.
Rc7 {[%clk 0:00:09.8]} 35... Rxc7 {[%clk 0:00:02.8]} 36. Qb6 {[%clk 0:00:09.6]}
36... Rd7 {[%clk 0:00:02.3]} 37. Qc6 {[%clk 0:00:09.6]} 37... Red8 {[%clk
0:00:03.2]} 38. Nd2 {[%clk 0:00:08.9]} 38... g4 {[%clk 0:00:01.7]} 39. Rg1
{[%clk 0:00:05]} 39... g3 {[%clk 0:00:01.8]} 40. h3 {[%clk 0:00:04.9]} 40... Qg6
{[%clk 0:00:02.6]} 41. Ne4 {[%clk 0:00:05]} 41... Qf7 {[%clk 0:00:02.9]} 42. Ra1
{[%clk 0:00:05.5]} 42... Rc7 {[%clk 0:00:02.7]} 43. Qb6 {[%clk 0:00:05.1]} 43...
Rcd7 {[%clk 0:00:02.5]} 44. Ra6 {[%clk 0:00:04.6]} 44... Qe7 {[%clk 0:00:03]}
45. Qc6 {[%clk 0:00:04.8]} 45... h5 {[%clk 0:00:02.9]} 46. b4 {[%clk 0:00:04.9]}
46... Kg6 {[%clk 0:00:03.3]} 47. b5 {[%clk 0:00:05.3]} 47... Kf5 {[%clk
0:00:03.9]} 48. b6 {[%clk 0:00:05.7]} 48... h4 {[%clk 0:00:03.8]} 49. b7 {[%clk
0:00:05.7]} 49... Rxb7 {[%clk 0:00:03.8]} 50. Nxd6+ {[%clk 0:00:06]} 50... Rxd6
{[%clk 0:00:04.1]} 51. Qc8+ {[%clk 0:00:04.8]} 51... Kg5 {[%clk 0:00:03.1]} 52.
Qg4+ {[%clk 0:00:04.6]} 52... Kf6 {[%clk 0:00:03.2]} 53. Qxh4+ {[%clk 0:00:05]}
53... Kf7 {[%clk 0:00:03.8]} 54. Qh7+ {[%clk 0:00:05.3]} 54... Ke8 {[%clk
0:00:04.1]} 55. Qg8+ {[%clk 0:00:05]} 55... Kd7 {[%clk 0:00:03.4]} 56. Qg4+
{[%clk 0:00:04]} 56... Kc7 {[%clk 0:00:03.8]} 57. Rc6+ {[%clk 0:00:03.9]} 57...
Rxc6 {[%clk 0:00:03.6]} 0-1

[Event "*** SCC Grand Prix: Titled Tuesday Blitz"]
[Site "Chess.com"]
[Date "2020.07.07"]
[Round "8"]
[White "theblitzchamp"]
[Black "IwkooO"]
[Result "1-0"]
[WhiteElo "2744"]
[BlackElo "2587"]
[TimeControl "180+1"]
[EndTime "11:37:26 PDT"]
[Termination "theblitzchamp won by resignation"]

1. d4 {[%clk 0:03:00.9]} 1... Nf6 {[%clk 0:02:59.6]} 2. Bf4 {[%clk 0:03:00.7]}
2... g6 {[%clk 0:02:59.3]} 3. Nc3 {[%clk 0:03:00]} 3... d6 {[%clk 0:02:54.8]} 4.
Nf3 {[%clk 0:02:52.6]} 4... Bg7 {[%clk 0:02:55.3]} 5. Qd2 {[%clk 0:02:49.1]}
5... O-O {[%clk 0:02:52.7]} 6. O-O-O {[%clk 0:02:48.1]} 6... c6 {[%clk
0:02:42.8]} 7. Bh6 {[%clk 0:02:27.4]} 7... b5 {[%clk 0:02:38.3]} 8. a3 {[%clk
0:02:06]} 8... a5 {[%clk 0:02:37.7]} 9. Bxg7 {[%clk 0:02:03.3]} 9... Kxg7 {[%clk
0:02:37.7]} 10. h4 {[%clk 0:01:59.2]} 10... h5 {[%clk 0:02:31.9]} 11. Ng5 {[%clk
0:01:26.6]} 11... b4 {[%clk 0:02:31.2]} 12. Nb1 {[%clk 0:01:26.6]} 12... Qb6
{[%clk 0:02:09.8]} 13. e4 {[%clk 0:01:24.8]} 13... Nbd7 {[%clk 0:02:07.1]} 14.
f4 {[%clk 0:00:54]} 14... Rb8 {[%clk 0:01:49.8]} 15. a4 {[%clk 0:00:43.5]} 15...
Ba6 {[%clk 0:01:46.3]} 16. b3 {[%clk 0:00:42.7]} 16... c5 {[%clk 0:01:32.8]} 17.
e5 {[%clk 0:00:43]} 17... Nd5 {[%clk 0:01:31.6]} 18. dxc5 {[%clk 0:00:36.1]}
18... Nxc5 {[%clk 0:01:17.5]} 19. Qxd5 {[%clk 0:00:35.6]} 19... Bb7 {[%clk
0:01:09.8]} 20. Qd4 {[%clk 0:00:29.1]} 20... Kg8 {[%clk 0:01:07]} 21. exd6
{[%clk 0:00:21.8]} 21... exd6 {[%clk 0:01:06.3]} 22. Qxd6 {[%clk 0:00:18.4]}
22... Nxb3+ {[%clk 0:01:03.5]} 23. cxb3 {[%clk 0:00:17.8]} 23... Qe3+ {[%clk
0:01:03.1]} 24. Kb2 {[%clk 0:00:15.3]} 24... Rbd8 {[%clk 0:00:49.1]} 25. Qxd8
{[%clk 0:00:14.6]} 25... Rxd8 {[%clk 0:00:50]} 26. Rxd8+ {[%clk 0:00:15]} 26...
Kg7 {[%clk 0:00:50.6]} 27. Bc4 {[%clk 0:00:15.1]} 27... Qf2+ {[%clk 0:00:47.3]}
28. Rd2 {[%clk 0:00:14.3]} 28... Qxf4 {[%clk 0:00:47.4]} 29. Rf1 {[%clk
0:00:14]} 29... Qxh4 {[%clk 0:00:46.9]} 30. Rxf7+ {[%clk 0:00:12.7]} 30... Kh6
{[%clk 0:00:47.5]} 31. Ne6 {[%clk 0:00:11.3]} 31... Bc8 {[%clk 0:00:44]} 32. Nf8
{[%clk 0:00:10.9]} 32... Bf5 {[%clk 0:00:40.8]} 33. Rh7+ {[%clk 0:00:08.9]}
33... Kg5 {[%clk 0:00:41.2]} 34. Rc7 {[%clk 0:00:07.5]} 34... Qf4 {[%clk
0:00:39.1]} 35. Rc5 {[%clk 0:00:06.1]} 35... Qe3 {[%clk 0:00:37.2]} 36. Ne6+
{[%clk 0:00:05.8]} 36... Kh6 {[%clk 0:00:36.8]} 37. Rc6 {[%clk 0:00:04.4]} 37...
Qe5+ {[%clk 0:00:34.6]} 38. Nd4 {[%clk 0:00:04.3]} 38... Be4 {[%clk 0:00:24]}
39. Rb6 {[%clk 0:00:03.7]} 39... Qc5 {[%clk 0:00:22.5]} 40. Rb5 {[%clk
0:00:03.9]} 40... Qf8 {[%clk 0:00:22.2]} 41. Bd3 {[%clk 0:00:04.3]} 41... Bxd3
{[%clk 0:00:19.6]} 42. Rxd3 {[%clk 0:00:05.2]} 42... Qf2+ {[%clk 0:00:20.1]} 43.
Rd2 {[%clk 0:00:05.8]} 43... Qf4 {[%clk 0:00:20.1]} 44. Rxa5 {[%clk 0:00:05.7]}
44... h4 {[%clk 0:00:20.4]} 45. Rb5 {[%clk 0:00:06]} 45... g5 {[%clk 0:00:17.4]}
46. Rxb4 {[%clk 0:00:06.4]} 46... g4 {[%clk 0:00:16.7]} 47. Rb6+ {[%clk
0:00:06.5]} 47... Kh7 {[%clk 0:00:17.2]} 48. Rb7+ {[%clk 0:00:06.2]} 48... Kh6
{[%clk 0:00:17.3]} 49. Rb6+ {[%clk 0:00:06]} 49... Kh7 {[%clk 0:00:17.4]} 50. a5
{[%clk 0:00:06.4]} 50... h3 {[%clk 0:00:17.4]} 51. gxh3 {[%clk 0:00:07.3]} 51...
gxh3 {[%clk 0:00:18.3]} 52. Rb7+ {[%clk 0:00:07.9]} 52... Kg6 {[%clk 0:00:17.6]}
53. Rb6+ {[%clk 0:00:07.9]} 53... Kh7 {[%clk 0:00:16.7]} 54. a6 {[%clk
0:00:08.4]} 54... h2 {[%clk 0:00:16.6]} 55. Rxh2+ {[%clk 0:00:09]} 55... Qxh2+
{[%clk 0:00:17.5]} 56. Nc2 {[%clk 0:00:09.5]} 56... Qe5+ {[%clk 0:00:17.1]} 57.
Nc3 {[%clk 0:00:10.1]} 57... Qa5 {[%clk 0:00:16.6]} 58. Rb7+ {[%clk 0:00:10.2]}
58... Kh6 {[%clk 0:00:16.4]} 59. a7 {[%clk 0:00:10.6]} 59... Qa6 {[%clk
0:00:16.8]} 60. Rc7 {[%clk 0:00:10.7]} 60... Kg5 {[%clk 0:00:15.7]} 61. Nd4
{[%clk 0:00:09.2]} 61... Kg4 {[%clk 0:00:15.1]} 62. Ndb5 {[%clk 0:00:09.2]}
62... Qa5 {[%clk 0:00:11.3]} 63. Rc4+ {[%clk 0:00:09]} 63... Kf3 {[%clk
0:00:11.2]} 64. Ra4 {[%clk 0:00:09.6]} 64... Qd8 {[%clk 0:00:11.2]} 65. a8=Q+
{[%clk 0:00:10.1]} 1-0

[Event "*** SCC Grand Prix: Titled Tuesday Blitz"]
[Site "Chess.com"]
[Date "2020.07.07"]
[Round "8"]
[White "PauloCesarCosta_sad"]
[Black "Stronger1799"]
[Result "0-1"]
[WhiteElo "2201"]
[BlackElo "2475"]
[TimeControl "180+1"]
[EndTime "11:37:29 PDT"]
[Termination "Stronger1799 won by checkmate"]

1. Nf3 {[%clk 0:03:00.9]} 1... Nf6 {[%clk 0:02:55.8]} 2. c4 {[%clk 0:03:00.5]}
2... g6 {[%clk 0:02:56.2]} 3. g3 {[%clk 0:03:00.6]} 3... Bg7 {[%clk 0:02:56.3]}
4. Bg2 {[%clk 0:03:01.5]} 4... O-O {[%clk 0:02:56.7]} 5. O-O {[%clk 0:03:01.4]}
5... d5 {[%clk 0:02:57.6]} 6. cxd5 {[%clk 0:02:58.2]} 6... Nxd5 {[%clk
0:02:58.5]} 7. Nc3 {[%clk 0:02:58.4]} 7... Nb6 {[%clk 0:02:58.4]} 8. b3 {[%clk
0:02:56.4]} 8... Nc6 {[%clk 0:02:58.4]} 9. Bb2 {[%clk 0:02:56.5]} 9... a5 {[%clk
0:02:58.8]} 10. d3 {[%clk 0:02:35.3]} 10... e5 {[%clk 0:02:53.3]} 11. Rc1 {[%clk
0:02:29.5]} 11... f5 {[%clk 0:02:43.3]} 12. Nd2 {[%clk 0:02:27.3]} 12... Nd4
{[%clk 0:02:40.3]} 13. Nc4 {[%clk 0:02:26.1]} 13... Nxc4 {[%clk 0:02:32.4]} 14.
dxc4 {[%clk 0:02:25.9]} 14... c6 {[%clk 0:02:22.3]} 15. e3 {[%clk 0:02:25.7]}
15... Ne6 {[%clk 0:02:22.5]} 16. Qxd8 {[%clk 0:02:25]} 16... Rxd8 {[%clk
0:02:22.2]} 17. Rcd1 {[%clk 0:02:25]} 17... e4 {[%clk 0:02:15.7]} 18. Rxd8+
{[%clk 0:02:23.5]} 18... Nxd8 {[%clk 0:02:16.6]} 19. Rd1 {[%clk 0:02:22.6]}
19... Be6 {[%clk 0:02:17.2]} 20. Na4 {[%clk 0:02:18.7]} 20... Bxb2 {[%clk
0:02:07.5]} 21. Nxb2 {[%clk 0:02:18.7]} 21... b5 {[%clk 0:02:03.8]} 22. cxb5
{[%clk 0:02:17]} 22... cxb5 {[%clk 0:02:04.7]} 23. Bf1 {[%clk 0:02:16.9]} 23...
b4 {[%clk 0:01:44.9]} 24. Bc4 {[%clk 0:02:09.9]} 24... Kf7 {[%clk 0:01:23.5]}
25. Bxe6+ {[%clk 0:01:52.9]} 25... Kxe6 {[%clk 0:01:24.4]} 26. Nc4 {[%clk
0:01:51.2]} 26... Nb7 {[%clk 0:01:21.5]} 27. Kf1 {[%clk 0:01:37.9]} 27... a4
{[%clk 0:01:21.4]} 28. Nb6 {[%clk 0:01:36]} 28... Ra6 {[%clk 0:00:56.1]} 29.
Nxa4 {[%clk 0:01:35.5]} 29... Rc6 {[%clk 0:00:56.5]} 30. Ke2 {[%clk 0:01:32.8]}
30... Nd6 {[%clk 0:00:47.9]} 31. Rd2 {[%clk 0:01:30.5]} 31... Nf7 {[%clk
0:00:43.1]} 32. Rd4 {[%clk 0:01:28.3]} 32... Ne5 {[%clk 0:00:36.9]} 33. Rxb4
{[%clk 0:01:18.1]} 33... Rc2+ {[%clk 0:00:37]} 34. Kd1 {[%clk 0:01:02.5]} 34...
Rxa2 {[%clk 0:00:33.8]} 35. Rb6+ {[%clk 0:01:00.2]} 35... Kf7 {[%clk 0:00:25.3]}
36. Rb7+ {[%clk 0:00:56.8]} 36... Kf6 {[%clk 0:00:25.9]} 37. Rb6+ {[%clk
0:00:57.1]} 37... Kg5 {[%clk 0:00:25.9]} 38. Nc5 {[%clk 0:00:55.2]} 38... Rxf2
{[%clk 0:00:23]} 39. Ne6+ {[%clk 0:00:53.5]} 39... Kh6 {[%clk 0:00:21.7]} 40.
Nf4 {[%clk 0:00:44.1]} 40... Ng4 {[%clk 0:00:20.6]} 41. Nd5 {[%clk 0:00:35.3]}
41... Rxh2 {[%clk 0:00:19.8]} 42. b4 {[%clk 0:00:35]} 42... Rh3 {[%clk
0:00:17.1]} 43. b5 {[%clk 0:00:33.8]} 43... Rxg3 {[%clk 0:00:17.6]} 44. Rb8
{[%clk 0:00:26.3]} 44... Nxe3+ {[%clk 0:00:16.9]} 45. Nxe3 {[%clk 0:00:26.5]}
45... Rxe3 {[%clk 0:00:17.8]} 46. Kc2 {[%clk 0:00:23.5]} 46... Re2+ {[%clk
0:00:17.6]} 47. Kc3 {[%clk 0:00:21.9]} 47... Re1 {[%clk 0:00:17.5]} 48. Kc2
{[%clk 0:00:21.2]} 48... Ra1 {[%clk 0:00:16]} 49. b6 {[%clk 0:00:20.8]} 49... e3
{[%clk 0:00:15.4]} 50. b7 {[%clk 0:00:19.7]} 50... Ra7 {[%clk 0:00:14.9]} 51.
Kd3 {[%clk 0:00:17.3]} 51... f4 {[%clk 0:00:15.1]} 52. Rf8 {[%clk 0:00:15.6]}
52... Rxb7 {[%clk 0:00:12.6]} 53. Rxf4 {[%clk 0:00:15.5]} 53... Re7 {[%clk
0:00:05.5]} 54. Rh4+ {[%clk 0:00:15.5]} 54... Kg5 {[%clk 0:00:05.9]} 55. Rh1
{[%clk 0:00:16.3]} 55... h5 {[%clk 0:00:06.4]} 56. Ke2 {[%clk 0:00:16.5]} 56...
Kh6 {[%clk 0:00:05.8]} 57. Rg1 {[%clk 0:00:17.4]} 57... g5 {[%clk 0:00:06.3]}
58. Rf1 {[%clk 0:00:17.8]} 58... h4 {[%clk 0:00:06.9]} 59. Rf6+ {[%clk
0:00:18.3]} 59... Kh5 {[%clk 0:00:07.5]} 60. Rf8 {[%clk 0:00:18.5]} 60... h3
{[%clk 0:00:07.8]} 61. Rh8+ {[%clk 0:00:19.4]} 61... Kg4 {[%clk 0:00:08.3]} 62.
Rb8 {[%clk 0:00:18.6]} 62... Kg3 {[%clk 0:00:08.5]} 63. Rb4 {[%clk 0:00:19.1]}
63... g4 {[%clk 0:00:08.8]} 64. Rb1 {[%clk 0:00:19.8]} 64... h2 {[%clk 0:00:09]}
65. Rh1 {[%clk 0:00:19.9]} 65... Kg2 {[%clk 0:00:09.1]} 66. Rxh2+ {[%clk
0:00:19.7]} 66... Kxh2 {[%clk 0:00:09.4]} 67. Ke1 {[%clk 0:00:20.6]} 67... Kg2
{[%clk 0:00:09.7]} 68. Ke2 {[%clk 0:00:21.5]} 68... Kg3 {[%clk 0:00:10.2]} 69.
Ke1 {[%clk 0:00:21.8]} 69... Kf3 {[%clk 0:00:10.7]} 70. Kf1 {[%clk 0:00:21.6]}
70... Rc7 {[%clk 0:00:06.5]} 71. Ke1 {[%clk 0:00:22.5]} 71... Rc1# {[%clk
0:00:06.1]} 0-1

[Event "*** SCC Grand Prix: Titled Tuesday Blitz"]
[Site "Chess.com"]
[Date "2020.07.07"]
[Round "8"]
[White "Isajevsky_Anton"]
[Black "chargemax23"]
[Result "1-0"]
[WhiteElo "2557"]
[BlackElo "2671"]
[TimeControl "180+1"]
[EndTime "11:37:30 PDT"]
[Termination "Isajevsky_Anton won by resignation"]

1. c4 {[%clk 0:03:00.9]} 1... e6 {[%clk 0:02:58.1]} 2. Nf3 {[%clk 0:03:00.6]}
2... d5 {[%clk 0:02:58.1]} 3. e3 {[%clk 0:03:00.9]} 3... Nf6 {[%clk 0:02:57.8]}
4. Nc3 {[%clk 0:03:00.7]} 4... Be7 {[%clk 0:02:58.1]} 5. b3 {[%clk 0:03:00.3]}
5... O-O {[%clk 0:02:58.3]} 6. Bb2 {[%clk 0:03:00.6]} 6... b6 {[%clk 0:02:55.8]}
7. cxd5 {[%clk 0:02:59.7]} 7... exd5 {[%clk 0:02:55.4]} 8. d4 {[%clk 0:02:59.4]}
8... Bb7 {[%clk 0:02:48]} 9. Bd3 {[%clk 0:02:58.8]} 9... c5 {[%clk 0:02:46.5]}
10. O-O {[%clk 0:02:56.4]} 10... Nc6 {[%clk 0:02:45.9]} 11. dxc5 {[%clk
0:02:56.5]} 11... bxc5 {[%clk 0:02:45.4]} 12. Rc1 {[%clk 0:02:55.7]} 12... Nb4
{[%clk 0:02:08.4]} 13. Bb1 {[%clk 0:02:40.4]} 13... Ne4 {[%clk 0:01:47.6]} 14.
a3 {[%clk 0:02:23.7]} 14... Na6 {[%clk 0:01:46.2]} 15. Nxe4 {[%clk 0:02:06.8]}
15... dxe4 {[%clk 0:01:45.6]} 16. Nd2 {[%clk 0:02:07.2]} 16... f5 {[%clk
0:01:37.2]} 17. Nc4 {[%clk 0:01:45.4]} 17... Bf6 {[%clk 0:00:27.3]} 18. Qe2
{[%clk 0:01:11.5]} 18... Qc7 {[%clk 0:00:25.2]} 19. Rfd1 {[%clk 0:01:05.9]}
19... Rad8 {[%clk 0:00:24.5]} 20. Bxf6 {[%clk 0:01:03.8]} 20... Rxf6 {[%clk
0:00:24.2]} 21. Rxd8+ {[%clk 0:01:02.7]} 21... Qxd8 {[%clk 0:00:24.4]} 22. Rd1
{[%clk 0:01:02.4]} 22... Qc7 {[%clk 0:00:24.1]} 23. Qd2 {[%clk 0:01:02.3]} 23...
h6 {[%clk 0:00:14.5]} 24. g3 {[%clk 0:00:49.2]} 24... Kh7 {[%clk 0:00:13.6]} 25.
Qd7 {[%clk 0:00:40.4]} 25... Bc6 {[%clk 0:00:11.2]} 26. Qxc7 {[%clk 0:00:26.5]}
26... Nxc7 {[%clk 0:00:11.2]} 27. Ne5 {[%clk 0:00:27.1]} 27... Be8 {[%clk
0:00:10.3]} 28. Rd8 {[%clk 0:00:26.5]} 28... Re6 {[%clk 0:00:10.3]} 29. Nc4
{[%clk 0:00:24]} 29... Nb5 {[%clk 0:00:10]} 30. Bc2 {[%clk 0:00:20.5]} 30... Nc3
{[%clk 0:00:09.6]} 31. Kf1 {[%clk 0:00:19.2]} 31... Bh5 {[%clk 0:00:09]} 32. Ke1
{[%clk 0:00:19.5]} 32... Bf3 {[%clk 0:00:07.6]} 33. a4 {[%clk 0:00:18.8]} 33...
h5 {[%clk 0:00:07]} 34. Kd2 {[%clk 0:00:19.2]} 34... Na2 {[%clk 0:00:04.5]} 35.
h4 {[%clk 0:00:19.7]} 35... Nb4 {[%clk 0:00:04.5]} 36. Bb1 {[%clk 0:00:18.9]}
36... Kg6 {[%clk 0:00:04.4]} 37. Kc3 {[%clk 0:00:18.8]} 37... Kf6 {[%clk
0:00:04.2]} 38. Rd7 {[%clk 0:00:18.5]} 38... a6 {[%clk 0:00:04.1]} 39. Nd2
{[%clk 0:00:13.5]} 39... Bg4 {[%clk 0:00:03.2]} 40. Nc4 {[%clk 0:00:12.3]} 40...
g5 {[%clk 0:00:03.2]} 41. hxg5+ {[%clk 0:00:11.9]} 41... Kxg5 {[%clk 0:00:04]}
42. Nd6 {[%clk 0:00:10.5]} 42... Kf6 {[%clk 0:00:04.9]} 43. Ne8+ {[%clk
0:00:10.6]} 43... Kg6 {[%clk 0:00:04.5]} 44. Nd6 {[%clk 0:00:09.8]} 44... Kf6
{[%clk 0:00:04.2]} 45. Nb7 {[%clk 0:00:09.9]} 45... Kg5 {[%clk 0:00:02.1]} 46.
Nxc5 {[%clk 0:00:09.8]} 46... Rb6 {[%clk 0:00:02]} 47. a5 {[%clk 0:00:09.9]}
47... Rb5 {[%clk 0:00:01.8]} 48. Ne6+ {[%clk 0:00:10.1]} 48... Kf6 {[%clk
0:00:01.4]} 49. Nd4 {[%clk 0:00:10.4]} 49... Nd5+ {[%clk 0:00:01.8]} 50. Kc4
{[%clk 0:00:10.1]} 50... Rxa5 {[%clk 0:00:02.7]} 51. Rxd5 {[%clk 0:00:10.2]}
51... Ra1 {[%clk 0:00:03.6]} 52. Bc2 {[%clk 0:00:09]} 52... Rf1 {[%clk
0:00:03.2]} 53. Rd6+ {[%clk 0:00:09.2]} 53... Kf7 {[%clk 0:00:02.9]} 54. b4
{[%clk 0:00:08.2]} 54... Rxf2 {[%clk 0:00:03]} 55. Bb3 {[%clk 0:00:08.7]} 55...
Ke7 {[%clk 0:00:02.4]} 56. Rxa6 {[%clk 0:00:08.2]} 56... Rg2 {[%clk 0:00:02.3]}
57. b5 {[%clk 0:00:08.6]} 57... Rxg3 {[%clk 0:00:02.3]} 58. b6 {[%clk 0:00:09]}
58... Rxe3 {[%clk 0:00:03.2]} 59. b7 {[%clk 0:00:09]} 59... Re1 {[%clk
0:00:03.2]} 60. b8=Q {[%clk 0:00:09]} 60... Rc1+ {[%clk 0:00:04.1]} 61. Kd5
{[%clk 0:00:09.2]} 61... f4 {[%clk 0:00:03.3]} 62. Ra7+ {[%clk 0:00:08.5]} 1-0

[Event "*** SCC Grand Prix: Titled Tuesday Blitz"]
[Site "Chess.com"]
[Date "2020.07.07"]
[Round "8"]
[White "sasko1234"]
[Black "GelmanAlexander"]
[Result "0-1"]
[WhiteElo "2401"]
[BlackElo "2548"]
[TimeControl "180+1"]
[EndTime "11:37:31 PDT"]
[Termination "GelmanAlexander won on time"]

1. b3 {[%clk 0:03:00.9]} 1... c5 {[%clk 0:02:59.8]} 2. Bb2 {[%clk 0:03:00.6]}
2... e6 {[%clk 0:03:00.1]} 3. e3 {[%clk 0:03:00.8]} 3... a6 {[%clk 0:03:00.3]}
4. Nf3 {[%clk 0:02:58.9]} 4... Nf6 {[%clk 0:03:00.1]} 5. Be2 {[%clk 0:02:56.2]}
5... d6 {[%clk 0:02:56.8]} 6. O-O {[%clk 0:02:54.7]} 6... Nbd7 {[%clk
0:02:57.1]} 7. d4 {[%clk 0:02:53.6]} 7... b6 {[%clk 0:02:57.4]} 8. c4 {[%clk
0:02:47.2]} 8... Bb7 {[%clk 0:02:57.6]} 9. Nc3 {[%clk 0:02:47.5]} 9... Rg8
{[%clk 0:02:57.4]} 10. dxc5 {[%clk 0:02:43.9]} 10... bxc5 {[%clk 0:02:56.9]} 11.
Qc2 {[%clk 0:02:39.7]} 11... g5 {[%clk 0:02:56.5]} 12. Rfd1 {[%clk 0:02:34.4]}
12... Qc7 {[%clk 0:02:50.8]} 13. Nd2 {[%clk 0:02:21.7]} 13... g4 {[%clk
0:02:49.9]} 14. Bf1 {[%clk 0:02:19]} 14... h5 {[%clk 0:02:41.5]} 15. Nce4 {[%clk
0:02:14.7]} 15... Nxe4 {[%clk 0:02:40.6]} 16. Nxe4 {[%clk 0:02:14.9]} 16... f5
{[%clk 0:02:30.2]} 17. Nf6+ {[%clk 0:01:51.1]} 17... Nxf6 {[%clk 0:02:29.7]} 18.
Bxf6 {[%clk 0:01:51.2]} 18... Kf7 {[%clk 0:02:27.6]} 19. Bh4 {[%clk 0:01:41.4]}
19... Bg7 {[%clk 0:02:16.7]} 20. Rac1 {[%clk 0:01:38.5]} 20... Be5 {[%clk
0:02:16.9]} 21. Rd2 {[%clk 0:01:15.2]} 21... a5 {[%clk 0:02:04.7]} 22. Rcd1
{[%clk 0:01:14.2]} 22... a4 {[%clk 0:02:04.7]} 23. Bg3 {[%clk 0:01:09.4]} 23...
Bxg3 {[%clk 0:02:02.3]} 24. hxg3 {[%clk 0:01:09.6]} 24... Ra6 {[%clk 0:02:01.2]}
25. Bd3 {[%clk 0:01:03]} 25... Qc6 {[%clk 0:01:57.4]} 26. Bf1 {[%clk 0:01:01.3]}
26... axb3 {[%clk 0:01:40]} 27. axb3 {[%clk 0:00:59.8]} 27... Rga8 {[%clk
0:01:35.9]} 28. Qc3 {[%clk 0:00:54.7]} 28... Qc7 {[%clk 0:01:22.4]} 29. b4
{[%clk 0:00:37]} 29... cxb4 {[%clk 0:01:12.5]} 30. Qxb4 {[%clk 0:00:37]} 30...
Rb6 {[%clk 0:01:13]} 31. Qc3 {[%clk 0:00:34.6]} 31... Qc5 {[%clk 0:01:05.7]} 32.
Rb2 {[%clk 0:00:23.9]} 32... Rxb2 {[%clk 0:00:59.9]} 33. Qxb2 {[%clk 0:00:23.3]}
33... Be4 {[%clk 0:00:57.7]} 34. Ra1 {[%clk 0:00:20.5]} 34... Rxa1 {[%clk
0:00:42.6]} 35. Qxa1 {[%clk 0:00:20.4]} 35... e5 {[%clk 0:00:38.4]} 36. Qa6
{[%clk 0:00:18.5]} 36... Qc6 {[%clk 0:00:33.6]} 37. Qa7+ {[%clk 0:00:18.3]}
37... Qb7 {[%clk 0:00:32.6]} 38. Qa3 {[%clk 0:00:16.7]} 38... Ke6 {[%clk
0:00:32.1]} 39. c5 {[%clk 0:00:15.8]} 39... d5 {[%clk 0:00:19.1]} 40. Qa5 {[%clk
0:00:15.5]} 40... Qc6 {[%clk 0:00:18.7]} 41. Qa7 {[%clk 0:00:15.1]} 41... d4
{[%clk 0:00:18.7]} 42. exd4 {[%clk 0:00:14.6]} 42... exd4 {[%clk 0:00:19.5]} 43.
Qg7 {[%clk 0:00:13.4]} 43... d3 {[%clk 0:00:19.5]} 44. Qg6+ {[%clk 0:00:11.1]}
44... Kd5 {[%clk 0:00:19.8]} 45. Qf7+ {[%clk 0:00:10.9]} 45... Kxc5 {[%clk
0:00:19.8]} 46. Qb3 {[%clk 0:00:10.9]} 46... Kd4 {[%clk 0:00:18.7]} 47. Qb2+
{[%clk 0:00:10.7]} 47... Qc3 {[%clk 0:00:18.5]} 48. Qb6+ {[%clk 0:00:10.8]}
48... Qc5 {[%clk 0:00:18.9]} 49. Qb2+ {[%clk 0:00:10.6]} 49... Kd5 {[%clk
0:00:17.6]} 50. Qb7+ {[%clk 0:00:10.4]} 50... Kc4 {[%clk 0:00:17.5]} 51. Qb2
{[%clk 0:00:10.1]} 51... Qb4 {[%clk 0:00:16.7]} 52. Qc1+ {[%clk 0:00:09.7]}
52... Qc3 {[%clk 0:00:17]} 53. Qf4 {[%clk 0:00:07.1]} 53... Qd4 {[%clk
0:00:14.7]} 54. Qc7+ {[%clk 0:00:06.8]} 54... Kb3 {[%clk 0:00:15.1]} 55. Qa5
{[%clk 0:00:06.6]} 55... Kc2 {[%clk 0:00:14]} 56. Qa2+ {[%clk 0:00:05.4]} 56...
Qb2 {[%clk 0:00:14.4]} 57. Qc4+ {[%clk 0:00:05.7]} 57... Qc3 {[%clk 0:00:14.7]}
58. Qa2+ {[%clk 0:00:05.7]} 58... Kc1 {[%clk 0:00:15.2]} 59. f3 {[%clk
0:00:04.9]} 59... gxf3 {[%clk 0:00:13.8]} 60. gxf3 {[%clk 0:00:05.2]} 60... Bxf3
{[%clk 0:00:11.9]} 61. Kf2 {[%clk 0:00:05.2]} 61... Be4 {[%clk 0:00:10.8]} 62.
Ke3 {[%clk 0:00:04.8]} 62... d2+ {[%clk 0:00:09.2]} 63. Ke2 {[%clk 0:00:03.9]}
63... d1=Q+ {[%clk 0:00:09.6]} 0-1